fUSD/lending_fUSD_20240905
["ID","MTS","AMOUNT","RATE_DAILY","PERIOD"]
[337248442,1725549385555,-177.41573148,0.0004822,120]
[337248443,1725549385595,-150.0,0.00048277,120]
[337248444,1725549385639,-150.0,0.00048344,120]
[337248445,1725549385681,-150.0,0.00048399,120]
[337248446,1725549385721,-949.0,0.000484,120]
[337248447,1725549385771,-150.0,0.00048405,120]
[337248448,1725549385811,-1328.28,0.00048493,120]
[337248449,1725549385850,-2651.05503901,0.00048549,117]
[337248450,1725549385889,-1492.94676094,0.000486,110]
[337248451,1725549385928,-150.0,0.00048666,120]
[337248452,1725549385966,-2624.73,0.00048767,120]
[337248453,1725549386007,-1328.28,0.00048767,120]
[337248454,1725549386045,-410.52871136,0.000488,120]
[337248455,1725549386084,-880.85683504,0.000488,120]
[337248456,1725549386121,-346.39296113,0.000488,120]
[337248457,1725549386159,-150.0,0.00048843,120]
[337248458,1725549386198,-3400.0,0.0004889,120]
[337248459,1725549386235,-1136.14998668,0.000489,120]
[337248460,1725549386277,-666.11589118,0.000489,120]
[337248461,1725549386321,-50000.0,0.00049,49]
[337248462,1725549386359,-982.52989168,0.00049,120]
[337248463,1725549386397,-539.5326444,0.00049,120]
[337248464,1725549386435,-76728.30832187,0.00049,120]
[337248465,1725549386474,-15624.47751785,0.00049,60]
[337248466,1725549386515,-174.54802622,0.00049,120]
[337248467,1725549386556,-630.228616,0.00049,120]
[337248468,1725549386597,-1328.28,0.00049041,120]
[337248469,1725549386641,-151.0,0.00049178,120]
[337248470,1725549386685,-2624.73,0.00049315,120]
[337248471,1725549386727,-1328.28,0.00049315,120]
[337248472,1725549386766,-3000.0,0.00049315,120]
[337248473,1725549386806,-336.59946034,0.00049315,120]
[337248474,1725549386846,-150.0,0.00049333,120]
[337248475,1725549386884,-20000.0,0.0004949,120]
[337248476,1725549386921,-5262.20255322,0.0004949,120]
[337248477,1725549386958,-20000.0,0.0004949,120]
[337248478,1725549386995,-430.24407531,0.0004949,120]
[337248479,1725549387033,-17500.0,0.0004949,120]
[337248480,1725549387072,-20000.0,0.0004949,120]
[337248481,1725549387109,-427.52683349,0.000495,120]
[337248482,1725549387151,-1328.28,0.00049589,120]
[337248483,1725549387189,-3336.02262,0.00049656,120]
[337248484,1725549387228,-800.0,0.0004974,90]
[337248485,1725549387267,-2561.71262563,0.000498,120]
[337248486,1725549387308,-2624.73,0.00049863,120]
[337248487,1725549387349,-1328.28,0.00049863,120]
[337248488,1725549387389,-2151.99318218,0.000499,120]
[337248489,1725549387427,-3033.319073,0.000499,120]
[337248490,1725549387466,-1000.0,0.00049999,120]
[337248491,1725549387510,-50000.0,0.0005,50]
[337248492,1725549387550,-700.0,0.0005,120]
[337248493,1725549387590,-150.0,0.0005,120]
[337248494,1725549387628,-1514.64171139,0.0005,60]
[337248495,1725549387668,-2800.98673293,0.0005,120]
[337248496,1725549387710,-3054.32118556,0.0005,60]
[337248497,1725549387748,-522.18922218,0.0005,120]
[337248498,1725549387791,-3299.49992199,0.0005,120]
[337248499,1725549387828,-1219.01421697,0.0005,120]
[337248500,1725549387865,-980.63750005,0.0005,120]
[337248501,1725549387904,-3000.0,0.0005,120]
[337248502,1725549388080,-200.0,0.0005,120]
[337248503,1725549388119,-8267.76990006,0.0005,120]
[337248504,1725549388158,-5441.259344,0.0005,60]
[337248505,1725549388198,-175.615729,0.0005,120]
[337248506,1725549388241,-10144.87433872,0.0005,120]
[337248507,1725549388285,-2651.05503901,0.00050049,117]
[337248508,1725549388324,-1328.28,0.00050136,120]
[337248509,1725549388362,-671.24846957,0.00050136,120]
[337248510,1725549388399,-151.0,0.00050137,120]
[337248511,1725549388435,-1006.2,0.00050155,43]
[337248512,1725549388474,-800.0,0.00050288,90]
[337248513,1725549388513,-500.0,0.00050288,90]
[337248514,1725549388551,-2624.73,0.0005041,120]
[337248515,1725549388589,-1328.28,0.0005041,120]
[337248516,1725549388628,-1463.97,0.00050462,120]
[337248517,1725549388665,-1328.28,0.00050684,120]
[337248518,1725549388704,-800.0,0.00050836,90]
[337248519,1725549388741,-500.0,0.00050836,90]
[337248520,1725549388780,-2624.73,0.00050958,120]
[337248521,1725549388819,-1328.28,0.00050958,120]
[337248522,1725549388856,-1000.0,0.00050999,120]
[337248523,1725549388895,-25000.0,0.00051,120]
[337248524,1725549388933,-62000.0,0.00051,120]
[337248525,1725549388970,-29000.0,0.00051,120]
[337248526,1725549389009,-1226.0,0.00051,120]
[337248527,1725549389046,-151.0,0.00051096,120]
[337248528,1725549389083,-1328.28,0.00051232,120]
[337248529,1725549389122,-800.0,0.00051384,90]
[337248530,1725549389160,-2624.73,0.00051506,120]
[337248531,1725549389202,-1328.28,0.00051506,120]
[337248532,1725549389242,-4083.98677782,0.0005152,120]
[337248533,1725549389282,-279.62717687,0.0005152,120]
[337248534,1725549389320,-2651.05503901,0.00051549,117]
[337248535,1725549389357,-1328.28,0.0005178,120]
[337248536,1725549389395,-1006.2,0.0005187,56]
[337248537,1725549389432,-644.5802002,0.00051932,90]
[337248538,1725549389470,-1000.0,0.00051999,120]
[337248539,1725549389509,-2340.79973444,0.00052,120]
[337248540,1725549389545,-197.54926966,0.00052,120]
[337248541,1725549389583,-2000.0,0.00052,120]
[337248542,1725549389623,-2624.73,0.00052054,120]
[337248543,1725549389661,-1328.28,0.00052054,120]
[337248544,1725549389698,-151.0,0.00052055,120]
[337248545,1725549389735,-569.15,0.00052055,90]
[337248546,1725549389993,217.15614972,0.00052055,40]
[337248547,1725549390078,500.0,0.00051384,90]
[337248548,1725549390167,611.31931755,0.00051932,90]
[337248549,1725549391394,150.0,0.00047978,120]
[337248550,1725549393398,2139.0,0.00040312,79]
[337248551,1725549393651,2352.9,0.00043571,97]
[337248552,1725549393796,7953.165117,0.00042549,117]
[337248553,1725549393956,5134.8,0.0004683,116]
[337248554,1725549394263,5562.7,0.00050089,117]
[337248555,1725549405633,-3400.7102,0.00015,10]
[337248556,1725549411332,500.0,0.00027,120]
[337248557,1725549411602,500.0,0.00027,120]
[337248584,1725549464137,250.0,0.00013896,2]
[337248610,1725549470422,-7455.2315,0.00015,10]
[337249026,1725549582448,472.07,0.00013876,2]
[337249029,1725549618921,264.56,0.00013877,2]
[337249030,1725549627845,357.75,0.00011959,2]
[337249032,1725549712889,184.68,0.00013906,2]
[337249033,1725549760490,250.0,0.00013923,2]
[337249035,1725549773329,-23900.0,0.00013967,2]
[337249036,1725549911968,150.0,0.00013488,2]
[337249037,1725549936066,229.17047798,0.0001,2]
[337249038,1725549937825,461.79468298,9.5e-05,2]
[337249039,1725549950561,250.0,0.0001387,2]
[337249040,1725549953556,2234.75326162,0.00010988,2]
[337249042,1725550092616,11131.3101299,0.0001251,2]
[337249044,1725550104718,381.95,0.0001195,2]
[337249045,1725550112926,622.34,0.00013868,2]
[337249059,1725550231624,-381.95,0.00014214,2]
[337249060,1725550231634,-190.666667,0.00014289,2]
[337249061,1725550231644,-460.95707012,0.0001455,2]
[337249065,1725550231770,-790.44928228,0.0001455,2]
[337249066,1725550231780,-566.58700289,0.000146,2]
[337249067,1725550231815,-11951.45619711,0.000146,2]
[337249068,1725550231824,-289.53,0.00014602,2]
[337249069,1725550231834,-800.0,0.00014602,2]
[337249070,1725550231843,-190.666667,0.00014647,2]
[337249071,1725550231853,-1251.40635239,0.00014688,2]
[337249072,1725550231862,-846.52950873,0.00014787,2]
[337249073,1725550231871,-252.1806,0.00014787,2]
[337249074,1725550231880,-786.8378,0.00014787,2]
[337249075,1725550231890,-727.9384,0.00014788,2]
[337249077,1725550231899,-7500.0,0.00014788,2]
[337249079,1725550231911,-2500.0,0.00014788,2]
[337249081,1725550231925,-601.6341,0.00014789,2]
[337249083,1725550231935,-172.79740645,0.00014797,2]
[337249085,1725550231947,-846.52950866,0.000148,2]
[337249087,1725550231956,-388.79,0.000148,2]
[337249089,1725550231969,-1331.46285286,0.000148,2]
[337249091,1725550231978,-846.52950866,0.00014812,2]
[337249093,1725550231988,-846.52950866,0.00014825,2]
[337249094,1725550231997,-846.52950866,0.00014837,2]
[337249095,1725550232006,-150.0,0.00014843,2]
[337249096,1725550232016,-172.79740645,0.00014847,2]
[337249097,1725550232025,-846.52950866,0.0001485,2]
[337249098,1725550232034,-3000.0,0.0001485,2]
[337249099,1725550232043,-4899.88194363,0.00014869,2]
[337249100,1725550232052,-500.0,0.00014873,2]
[337249101,1725550232061,-500.0,0.00014873,2]
[337249102,1725550232070,-1000.0,0.00014878,2]
[337249103,1725550232079,-500.0,0.00014878,2]
[337249104,1725550232089,-500.0,0.00014878,2]
[337249105,1725550232098,-540.72516336,0.00014878,2]
[337249106,1725550232107,-500.0,0.00014878,2]
[337249107,1725550232117,-56837.4411684,0.00014878,3]
[337249108,1725550232126,-28418.7205842,0.00014879,3]
[337249109,1725550232135,-201.27077218,0.00014879,3]
[337249110,1725550232145,-2915.18,0.00014887,2]
[337249111,1725550232156,-532.7,0.00014887,2]
[337249112,1725550232165,-500.0,0.00014887,2]
[337249113,1725550232175,-500.0,0.00014887,2]
[337249114,1725550232184,-1865.02,0.00014887,2]
[337249115,1725550232194,-500.0,0.00014887,2]
[337249116,1725550232204,-500.0,0.00014887,2]
[337249117,1725550232216,-9412.71,0.00014887,2]
[337249118,1725550232226,-3052.11,0.00014887,2]
[337249119,1725550232236,-677.72,0.00014887,2]
[337249120,1725550232245,-500.0,0.00014887,2]
[337249121,1725550232254,-269.403931,0.00014887,2]
[337249122,1725550232264,-500.0,0.00014887,2]
[337249123,1725550232273,-904.037889,0.00014887,2]
[337249124,1725550232283,-154.362384,0.00014887,2]
[337249125,1725550232292,-1136.8,0.00014887,2]
[337249126,1725550232301,-152.714665,0.00014887,2]
[337249127,1725550232311,-500.0,0.00014887,2]
[337249128,1725550232320,-500.0,0.00014887,2]
[337249129,1725550232329,-500.0,0.00014887,2]
[337249130,1725550232339,-500.0,0.00014887,2]
[337249131,1725550232348,-500.0,0.00014887,2]
[337249132,1725550232357,-507.91,0.00014887,2]
[337249133,1725550232367,-500.0,0.00014887,2]
[337249134,1725550232376,-544.6,0.00014887,2]
[337249135,1725550232386,-707.15,0.00014887,2]
[337249136,1725550232394,-4140.65,0.00014887,2]
[337249137,1725550232404,-779.58,0.00014887,2]
[337249138,1725550232413,-2204.52,0.00014887,2]
[337249139,1725550232423,-2204.52,0.00014887,2]
[337249140,1725550232432,-3371.86,0.00014887,2]
[337249141,1725550232441,-500.0,0.00014887,2]
[337249142,1725550232451,-500.0,0.00014887,2]
[337249143,1725550232462,-2031.96,0.00014887,2]
[337249144,1725550232471,-2031.96,0.00014887,2]
[337249145,1725550232481,-500.0,0.00014887,2]
[337249146,1725550232490,-500.0,0.00014887,2]
[337249147,1725550232499,-500.0,0.00014887,2]
[337249148,1725550232508,-2476.19,0.00014887,2]
[337249149,1725550232518,-500.0,0.00014887,2]
[337249150,1725550232527,-500.0,0.00014887,2]
[337249151,1725550232536,-1143.56,0.00014887,2]
[337249152,1725550232546,-757.97,0.00014887,2]
[337249153,1725550232555,-757.97,0.00014887,2]
[337249154,1725550232564,-500.0,0.00014887,2]
[337249155,1725550232574,-819.63,0.00014887,2]
[337249156,1725550232583,-819.63,0.00014887,2]
[337249157,1725550232593,-563.42,0.00014887,2]
[337249158,1725550232604,-500.0,0.00014887,2]
[337249159,1725550232614,-500.0,0.00014887,2]
[337249160,1725550232623,-500.0,0.00014887,2]
[337249161,1725550232632,-732.25,0.00014887,2]
[337249162,1725550232642,-1113.34,0.00014887,2]
[337249163,1725550232652,-5041.92,0.00014887,2]
[337249164,1725550232661,-5041.92,0.00014887,2]
[337249165,1725550232671,-2161.85,0.00014887,2]
[337249166,1725550232681,-3096.96,0.00014887,2]
[337249167,1725550232691,-1588.8,0.00014887,2]
[337249168,1725550232700,-500.0,0.00014887,2]
[337249169,1725550232713,-1588.8,0.00014887,2]
[337249170,1725550232723,-3129.03,0.00014887,2]
[337249171,1725550232732,-2226.75,0.00014887,2]
[337249172,1725550232741,-2226.75,0.00014887,2]
[337249173,1725550232750,-3169.3,0.00014887,2]
[337249174,1725550232759,-7165.74,0.00014887,2]
[337249175,1725550232768,-183.983809,0.00014887,2]
[337249176,1725550232778,-2952.43,0.00014887,2]
[337249177,1725550232788,-2952.43,0.00014887,2]
[337249178,1725550232797,-592.4,0.00014887,2]
[337249179,1725550232807,-500.0,0.00014887,2]
[337249180,1725550232816,-500.0,0.00014887,2]
[337249181,1725550232825,-1517.09,0.00014887,2]
[337249182,1725550232835,-1517.09,0.00014887,2]
[337249183,1725550232844,-500.0,0.00014887,2]
[337249184,1725550232853,-1408.05,0.00014887,2]
[337249185,1725550232863,-535.51,0.00014887,2]
[337249186,1725550232872,-500.0,0.00014887,2]
[337249187,1725550232882,-3433.77,0.00014887,2]
[337249188,1725550232891,-500.0,0.00014887,2]
[337249189,1725550232900,-3433.77,0.00014887,2]
[337249190,1725550232910,-500.0,0.00014887,2]
[337249191,1725550232925,-500.0,0.00014887,2]
[337249192,1725550232934,-500.0,0.00014887,2]
[337249193,1725550232943,-500.0,0.00014888,2]
[337249194,1725550232953,-500.0,0.00014888,2]
[337249195,1725550232965,-500.0,0.00014888,2]
[337249196,1725550232974,-500.0,0.00014888,2]
[337249197,1725550232983,-325.7383695,0.00014888,2]
[337249198,1725550232992,-561.37027387,0.00014888,2]
[337249199,1725550233002,-500.0,0.00014888,2]
[337249200,1725550233011,-500.0,0.00014888,2]
[337249201,1725550233020,-545.20304825,0.00014888,2]
[337249202,1725550233029,-481.53338237,0.00014888,2]
[337249203,1725550233039,-288.39251534,0.00014888,2]
[337249204,1725550233050,-500.0,0.00014888,2]
[337249205,1725550233059,-509.92227269,0.00014888,2]
[337249206,1725550233069,-500.0,0.00014888,2]
[337249207,1725550233079,-500.0,0.00014888,2]
[337249208,1725550233088,-500.0,0.00014888,2]
[337249209,1725550233098,-583.51580451,0.00014888,2]
[337249210,1725550233107,-241.00253087,0.00014888,2]
[337249211,1725550233117,-505.46668026,0.00014888,2]
[337249212,1725550233127,-500.0,0.00014888,2]
[337249213,1725550233136,-500.0,0.00014888,2]
[337249214,1725550233146,-450.65370587,0.00014888,2]
[337249215,1725550233156,-506.25657248,0.00014888,2]
[337249216,1725550233165,-500.0,0.00014888,2]
[337249217,1725550233175,-507.74783076,0.00014888,2]
[337249218,1725550233184,-506.77541967,0.00014888,2]
[337249219,1725550233193,-424.47177416,0.00014888,2]
[337249220,1725550233202,-517.28169514,0.00014888,2]
[337249221,1725550233213,-517.81886337,0.00014888,2]
[337249222,1725550233222,-505.18998397,0.00014888,2]
[337249223,1725550233233,-502.13827117,0.00014888,2]
[337249224,1725550233242,-500.0,0.00014888,2]
[337249225,1725550233251,-500.0,0.00014888,2]
[337249226,1725550233261,-500.0,0.00014888,2]
[337249227,1725550233270,-501.23571423,0.00014888,2]
[337249228,1725550233280,-500.0,0.00014888,2]
[337249229,1725550233289,-502.1354554,0.00014888,2]
[337249230,1725550233299,-500.0,0.00014888,2]
[337249231,1725550233308,-500.0,0.00014888,2]
[337249232,1725550233318,-593.02,0.00014888,2]
[337249233,1725550233327,-500.0,0.00014888,2]
[337249234,1725550233336,-500.0,0.00014888,2]
[337249235,1725550233346,-500.0,0.00014888,2]
[337249236,1725550233355,-500.0,0.00014888,2]
[337249237,1725550233365,-500.0,0.00014888,2]
[337249238,1725550233375,-503.3688616,0.00014888,2]
[337249239,1725550233385,-510.6744106,0.00014888,2]
[337249240,1725550233395,-500.0,0.00014888,2]
[337249241,1725550233404,-518.11842619,0.00014888,2]
[337249242,1725550233414,-500.0,0.00014888,2]
[337249243,1725550233423,-500.0,0.00014888,2]
[337249244,1725550233432,-500.0,0.00014888,2]
[337249245,1725550233442,-501.5812111,0.00014888,2]
[337249246,1725550233451,-500.0,0.00014888,2]
[337249247,1725550233463,-500.0,0.00014888,2]
[337249248,1725550233472,-511.92564159,0.00014888,2]
[337249249,1725550233482,-500.0,0.00014888,2]
[337249250,1725550233492,-500.0,0.00014888,2]
[337249251,1725550233501,-500.0,0.00014888,2]
[337249252,1725550233510,-500.0,0.00014888,2]
[337249253,1725550233520,-500.0,0.00014888,2]
[337249254,1725550233529,-500.0,0.00014888,2]
[337249255,1725550233539,-501.41392775,0.00014888,2]
[337249256,1725550233548,-523.72663887,0.00014888,2]
[337249257,1725550233558,-500.0,0.00014888,2]
[337249258,1725550233568,-500.0,0.00014888,2]
[337249259,1725550233578,-500.0,0.00014888,2]
[337249260,1725550233587,-500.0,0.00014888,2]
[337249261,1725550233596,-500.0,0.00014888,2]
[337249262,1725550233606,-500.0,0.00014888,2]
[337249263,1725550233615,-500.0,0.00014888,2]
[337249264,1725550233625,-543.11034895,0.00014888,2]
[337249265,1725550233635,-500.0,0.00014888,2]
[337249266,1725550233645,-500.0,0.00014888,2]
[337249267,1725550233655,-500.0,0.00014888,2]
[337249268,1725550233665,-501.63510248,0.00014888,2]
[337249269,1725550233675,-500.0,0.00014888,2]
[337249270,1725550233685,-500.0,0.00014888,2]
[337249271,1725550233696,-503.66723968,0.00014888,2]
[337249272,1725550233706,-500.80253628,0.00014888,2]
[337249273,1725550233721,-500.0,0.00014888,2]
[337249274,1725550233732,-500.0,0.00014888,2]
[337249275,1725550233742,-502.08403095,0.00014888,2]
[337249276,1725550233753,-522.88,0.00014888,2]
[337249277,1725550233763,-500.0,0.00014888,2]
[337249278,1725550233773,-525.15904054,0.00014888,2]
[337249279,1725550233783,-500.0,0.00014888,2]
[337249280,1725550233793,-500.0,0.00014888,2]
[337249281,1725550233804,-500.0,0.00014888,2]
[337249282,1725550233814,-500.0,0.00014888,2]
[337249283,1725550233825,-500.0,0.00014888,2]
[337249284,1725550233836,-500.0,0.00014888,2]
[337249285,1725550233846,-500.0,0.00014888,2]
[337249286,1725550233859,-507.7988219,0.00014888,2]
[337249287,1725550233869,-500.0,0.00014888,2]
[337249288,1725550233880,-500.0,0.00014888,2]
[337249289,1725550233890,-500.0,0.00014888,2]
[337249290,1725550233900,-500.0,0.00014888,2]
[337249291,1725550233913,-500.0,0.00014888,2]
[337249292,1725550233923,-587.24034607,0.00014888,2]
[337249293,1725550233935,-648.66994618,0.00014888,2]
[337249294,1725550233945,-500.0,0.00014888,2]
[337249295,1725550233956,-500.0,0.00014888,2]
[337249296,1725550233970,-505.02158865,0.00014888,2]
[337249297,1725550233981,-500.77626128,0.00014888,2]
[337249298,1725550233991,-500.0,0.00014888,2]
[337249299,1725550234002,-500.0,0.00014888,2]
[337249300,1725550234013,-501.22157157,0.00014888,2]
[337249301,1725550234023,-501.0591313,0.00014888,2]
[337249302,1725550234034,-500.0,0.00014888,2]
[337249303,1725550234045,-500.0,0.00014888,2]
[337249304,1725550234055,-502.47145138,0.00014888,2]
[337249305,1725550234066,-500.0,0.00014888,2]
[337249306,1725550234076,-503.57905218,0.00014888,2]
[337249307,1725550234087,-500.0,0.00014888,2]
[337249308,1725550234096,-498.34037119,0.00014888,2]
[337249309,1725550234106,-500.0,0.00014888,2]
[337249310,1725550234117,-500.0,0.00014888,2]
[337249311,1725550234128,-176.76548254,0.00014888,2]
[337249312,1725550234138,-500.0,0.00014888,2]
[337249313,1725550234148,-500.0,0.00014888,2]
[337249314,1725550234158,-528.18773067,0.00014888,2]
[337249315,1725550234167,-456.85232004,0.00014888,2]
[337249316,1725550234177,-500.0,0.00014888,2]
[337249317,1725550234186,-456.86229678,0.00014888,2]
[337249318,1725550234196,-500.0,0.00014888,2]
[337249319,1725550234205,-500.0,0.00014888,2]
[337249320,1725550234219,-561.79137335,0.00014888,2]
[337249321,1725550234229,-500.0,0.00014888,2]
[337249322,1725550234239,-500.0,0.00014888,2]
[337249323,1725550234248,-527.35686262,0.00014888,2]
[337249324,1725550234460,-500.0,0.00014888,2]
[337249325,1725550234470,-511.38910384,0.00014888,2]
[337249326,1725550234480,-500.0,0.00014888,2]
[337249327,1725550234490,-500.0,0.00014888,2]
[337249328,1725550234500,-211.4700644,0.00014888,2]
[337249329,1725550234511,-503.48809185,0.00014888,2]
[337249330,1725550234522,-500.0,0.00014888,2]
[337249331,1725550234533,-500.0,0.00014888,2]
[337249332,1725550234543,-500.0,0.00014888,2]
[337249333,1725550234553,-509.94628758,0.00014888,2]
[337249334,1725550234564,-547.33988316,0.00014888,2]
[337249335,1725550234574,-500.0,0.00014888,2]
[337249336,1725550234584,-500.0,0.00014888,2]
[337249337,1725550234594,-503.48697753,0.00014888,2]
[337249338,1725550234604,-533.94186445,0.00014888,2]
[337249339,1725550234613,-640.79,0.00014888,2]
[337249340,1725550234623,-501.10276712,0.00014888,2]
[337249341,1725550234633,-500.0,0.00014888,2]
[337249342,1725550234643,-500.0,0.00014888,2]
[337249343,1725550234653,-619.23670761,0.00014888,2]
[337249344,1725550234664,-501.82691656,0.00014888,2]
[337249345,1725550234674,-500.0,0.00014888,2]
[337249346,1725550234684,-500.0,0.00014888,2]
[337249347,1725550234694,-500.98123731,0.00014888,2]
[337249348,1725550234704,-500.0,0.00014888,2]
[337249349,1725550234719,-500.0,0.00014888,2]
[337249350,1725550234728,-500.0,0.00014888,2]
[337249351,1725550234738,-283.7710303,0.00014888,2]
[337249352,1725550234748,-506.03376428,0.00014888,2]
[337249353,1725550234758,-500.0,0.00014888,2]
[337249354,1725550234769,-500.0,0.00014888,2]
[337249355,1725550234778,-502.64360412,0.00014888,2]
[337249356,1725550234788,-507.5500635,0.00014888,2]
[337249357,1725550234798,-506.68787596,0.00014888,2]
[337249358,1725550234808,-500.0,0.00014888,2]
[337249359,1725550234818,-500.0,0.00014888,2]
[337249360,1725550234828,-525.66239386,0.00014888,2]
[337249361,1725550234837,-503.26585795,0.00014888,2]
[337249362,1725550234847,-500.77465038,0.00014888,2]
[337249363,1725550234856,-500.0,0.00014888,2]
[337249364,1725550234866,-500.0,0.00014888,2]
[337249365,1725550234876,-577.08483178,0.00014888,2]
[337249366,1725550234886,-557.07310078,0.00014888,2]
[337249367,1725550234895,-500.30740647,0.00014888,2]
[337249368,1725550234905,-500.0,0.00014888,2]
[337249369,1725550234916,-500.0,0.00014888,2]
[337249370,1725550234929,-637.10543746,0.00014888,2]
[337249371,1725550234938,-549.85495217,0.00014888,2]
[337249372,1725550234948,-500.0,0.00014888,2]
[337249373,1725550234957,-500.0,0.00014888,2]
[337249374,1725550234970,-501.94986652,0.00014888,2]
[337249375,1725550234979,-504.85893821,0.00014888,2]
[337249376,1725550234988,-499.58437209,0.00014888,2]
[337249377,1725550234998,-391.76595345,0.00014888,2]
[337249378,1725550235009,-492.47024869,0.00014888,2]
[337249379,1725550235018,-472.99025079,0.00014888,2]
[337249380,1725550235027,-546.64564044,0.00014888,2]
[337249381,1725550235036,-500.0,0.00014888,2]
[337249382,1725550235046,-500.0,0.00014888,2]
[337249383,1725550235056,-506.52196685,0.00014888,2]
[337249384,1725550235066,-500.72031622,0.00014888,2]
[337249385,1725550235075,-500.0,0.00014888,2]
[337249386,1725550235085,-500.0,0.00014888,2]
[337249387,1725550235095,-532.47341185,0.00014888,2]
[337249388,1725550235104,-502.2995098,0.00014888,2]
[337249389,1725550235114,-500.0,0.00014888,2]
[337249390,1725550235123,-498.57838593,0.00014888,2]
[337249391,1725550235132,-502.90338339,0.00014888,2]
[337249392,1725550235142,-509.55146355,0.00014888,2]
[337249393,1725550235152,-500.0,0.00014888,2]
[337249394,1725550235161,-502.21480672,0.00014888,2]
[337249395,1725550235171,-500.0,0.00014888,2]
[337249396,1725550235181,-514.74978611,0.00014888,2]
[337249397,1725550235190,-500.0,0.00014888,2]
[337249398,1725550235200,-498.57153353,0.00014888,2]
[337249399,1725550235212,-500.0,0.00014888,2]
[337249400,1725550235221,-342.04694742,0.00014888,2]
[337249401,1725550235230,-526.32650712,0.00014888,2]
[337249402,1725550235240,-500.0,0.00014888,2]
[337249403,1725550235249,-506.88311914,0.00014888,2]
[337249404,1725550235259,-533.21050035,0.00014888,2]
[337249405,1725550235268,-500.0,0.00014888,2]
[337249406,1725550235278,-508.26508994,0.00014888,2]
[337249407,1725550235287,-500.0,0.00014888,2]
[337249408,1725550235297,-504.17199426,0.00014888,2]
[337249409,1725550235306,-508.72061803,0.00014888,2]
[337249410,1725550235316,-508.31197356,0.00014888,2]
[337249411,1725550235326,-500.0,0.00014888,2]
[337249412,1725550235335,-532.77040632,0.00014888,2]
[337249413,1725550235345,-503.61160403,0.00014888,2]
[337249414,1725550235355,-500.0,0.00014888,2]
[337249415,1725550235365,-502.93380334,0.00014888,2]
[337249416,1725550235375,-523.87068199,0.00014888,2]
[337249417,1725550235384,-498.63135953,0.00014888,2]
[337249418,1725550235394,-498.54923799,0.00014888,2]
[337249419,1725550235405,-549.26207672,0.00014888,2]
[337249420,1725550235414,-514.83145578,0.00014888,2]
[337249421,1725550235424,-406.64550757,0.00014888,2]
[337249422,1725550235434,-563.8636225,0.00014888,2]
[337249423,1725550235443,-500.0,0.00014888,2]
[337249424,1725550235453,-500.0,0.00014888,2]
[337249425,1725550235466,-272.87831194,0.00014888,2]
[337249426,1725550235476,-208.98742041,0.00014888,2]
[337249427,1725550235485,-500.0,0.00014888,2]
[337249428,1725550235495,-500.0,0.00014888,2]
[337249429,1725550235504,-500.0,0.00014888,2]
[337249430,1725550235513,-173.91645811,0.00014888,2]
[337249431,1725550235523,-500.0,0.00014888,2]
[337249432,1725550235533,-334.38185412,0.00014888,2]
[337249433,1725550235543,-517.77066558,0.00014888,2]
[337249434,1725550235553,-500.0,0.00014888,2]
[337249435,1725550235563,-500.0,0.00014888,2]
[337249436,1725550235573,-500.0,0.00014888,2]
[337249437,1725550235582,-500.0,0.00014888,2]
[337249438,1725550235592,-500.0,0.00014888,2]